Cogmind - Beta 13 @@@ ROGUE MODE // 2024.04.20 @ 18:59:18 Player: Cherman0 Result: Destroyed by as-14185 with Assembled Blade Performance ------------- Evolutions (0) 0 Regions Visited (2) 400 Robots Destroyed (19) 95 Value Destroyed (427) 427 Prototype IDs (5) 100 Alien Tech Used (0) 0 Bonus (39) 39 TOTAL SCORE: 1061 Bonus ------- Follower Combat Kills 39 Cogmind --------- Core Integrity 0/250 Matter 5/300 Energy 100/100 System Corruption 8% Temperature Cool (0) Movement Core (1400) Ox27 Location -10/Mines Parts ------- > --- POWER (1) -------- (None) > --- PROPULSION (2) --- (None) > --- UTILITY (2) ------ Huge Storage Unit > --- WEAPON (2) ------- Hammer > --- INVENTORY (25) --- Improved Ion Engine Light Treads Light Treads Light Treads Aluminum Leg Aluminum Leg Improved Heat Sink High-capacity Matter Pod (128) Machine Analyzer Light Armor Plating Datajack Peak State ------------ > --- POWER ------------ Improved Ion Engine > --- PROPULSION ------- Light Treads Light Treads > --- UTILITY ---------- Huge Storage Unit Seismic Detector > --- WEAPON ----------- Autogun Autogun > --- INVENTORY -------- Ion Engine Ion Engine Light Treads Light Treads Light Treads Light Treads Light Treads Aluminum Leg Aluminum Leg Improved Heat Sink High-capacity Matter Pod Machine Analyzer Light Armor Plating Autogun Autogun Datajack Hammer [Rating: 12] Favorites ----------- Power Ion Engine Engine Ion Engine Propulsion Light Treads Treads Light Treads Leg Aluminum Leg Utility Seismic Detector Device Seismic Detector Storage Huge Storage Unit Protection Light Armor Plating Weapon Autogun Energy Gun Small Laser Ballistic Gun Autogun Impact Weapon Hammer Build | -11 -10 -10 ------- Run | Yrd Mat Min Slots Evolved . | . . . Power . | . . . Propulsion . | . . . Utility . | . . . Weapon . | . . . Parts Attached 19 | 2 10 7 Power 2 | . 1 1 Engine 2 | . 1 1 Core . | . . . Reactor . | . . . Propulsion 5 | . 3 2 Treads 5 | . 3 2 Leg . | . . . Wheel . | . . . Hover . | . . . Flight . | . . . Utility 4 | 1 2 1 Device 2 | 1 1 . Storage 1 | . 1 . Processor . | . . . Hackware . | . . . Protection 1 | . . 1 Artifact . | . . . Weapon 8 | 1 4 3 Energy Gun 1 | 1 . . Energy Cannon . | . . . Ballistic Gun 6 | . 4 2 Ballistic Cannon . | . . . Launcher . | . . . Special Weapon . | . . . Impact Weapon 1 | . . 1 Slashing Weapon . | . . . Piercing Weapon . | . . . Special Melee Weapon . | . . . Unidentified Prototypes . | . . . Parts Lost 11 | . . 11 Power 1 | . . 1 Propulsion 4 | . . 4 Utility 2 | . . 2 Weapon 4 | . . 4 Highest Loss Streak 8 | . . 8 To Critical Strikes . | . . . Average Slot Usage (%) 99 | . 99 98 Engine 13 | . 14 13 Treads 16 | . 13 27 Leg 11 | . 14 . Device 13 | . 14 11 Storage 14 | . 14 14 Energy Gun 9 | . 11 . Ballistic Gun 18 | . 16 27 Naked Turns . | . . . Heaviest Build 96 | 12 92 96 Greatest Support 40 | 20 40 40 Greatest Overweight (x) 2 | . 2 2 Average Overweight (x) 1 | . 1 2 Largest Inventory Capacity 25 | 8 25 25 Average Capacity 18 | 8 16 25 Most Carried 18 | 6 11 18 Average Carried 8 | 4 7 14 Final Capacity 25 | 8 25 25 Final Carried 11 | 5 11 11 Class Distribution -------------------- 100% | Mutant Dominant Class ---------------- Mutant | -10/Materials Mutant | -10/Mines Resources | -11 -10 -10 ----------- Run | Yrd Mat Min Matter Collected 866 | 220 393 253 Remotely . | . . . Salvage Created 815 | 92 521 202 Parts 33 | 4 29 . Haulers Intercepted 1 | . 1 . Recyclers Shooed . | . . . Parts Field Recycled . | . . . Retrieved Matter . | . . . Parts Self-Destructed . | . . . Prevented . | . . . Kills | -11 -10 -10 ------- Run | Yrd Mat Min Combat Hostiles Destroyed 23 | . 10 13 Guns 23 | . 10 13 Classes Destroyed 10 | 2 7 1 Worker 1 | . 1 . Tunneler 1 | 1 . . Hauler 1 | . 1 . Recycler 1 | 1 . . Mechanic 1 | . 1 . Operator 1 | . 1 . Watcher 3 | . 3 . Swarmer 3 | . 3 . Grunt 7 | . 7 . Assembled 13 | . . 13 Best Kill Streak 10 | 2 3 10 Combat Bots Only 10 | . 3 10 Max Kills in Single Turn 1 | 1 1 1 Gunslinging . | . . . Exploded . | . . . Melee . | . . . Uniques/NPCs Destroyed . | . . . Combat | -11 -10 -10 -------- Run | Yrd Mat Min Hostile Shots Fired 155 | . 44 111 Missed 43 | . 15 28 Damage Taken 1857 | . 306 1551 Core 259 | . 29 230 Absorbed by Shields . | . . . Regen/Repaired (Parts) 167 | . 167 . Core Remaining (%) 100 | 100 . . Volleys Fired 103 | 2 51 50 Largest 2 | 2 2 2 Hottest 90 | 90 90 46 Shots Fired 204 | 4 101 99 Gun 204 | 4 101 99 Cannon . | . . . Launcher . | . . . Special . | . . . Kinetic 173 | . 74 99 Thermal 31 | 4 27 . Explosive . | . . . Electromagnetic . | . . . Robot Hit Streak 12 | 2 12 6 Robot Miss Streak 5 | 1 2 5 Penetration Max . | . . . Secondary Targets 3 | . . 3 Max Gunslinging Chain 1 | . . 1 Shots Hit Robots 126 | 3 67 56 Core Hits 54 | 3 26 25 Critical Kills 1 | . 1 . Critical Parts Destroyed 1 | . 1 . Critical Strikes 4 | . 4 . Burn 2 | . 2 . Destroy 2 | . 2 . Melee Attacks 2 | . . 2 Impact 2 | . . 2 Slashing . | . . . Piercing . | . . . Sneak Attacks . | . . . Combat Hostiles . | . . . Follow-up Attacks . | . . . Damage Inflicted 1888 | 36 942 910 Guns 1840 | 36 924 880 Cannons . | . . . Explosions . | . . . Melee 30 | . . 30 Ramming 18 | . 18 . Kinetic 1549 | . 669 880 Thermal 291 | 36 255 . Explosive . | . . . Electromagnetic . | . . . Impact 30 | . . 30 Slashing . | . . . Piercing . | . . . Highest Corruption 8 | . . 8 Average Corruption 4 | . . 4 Corruption Purged . | . . . Corruption Blocked . | . . . Effects 4 | . . 4 Matter Fused 1 | . . 1 Heat Flow Errors 2 | . . 2 Data Loss (major) 1 | . . 1 Overload Shots . | . . . Overflow Damage . | . . . Projectiles . | . . . Explosions . | . . . Melee . | . . . Knockbacks . | . . . Impact . | . . . Kinetic . | . . . Secondary . | . . . Self-Inflicted Damage . | . . . Shots . | . . . Rammed . | . . . Targets Rammed 2 | . 2 . Kicked 2 | . 2 . Crushed . | . . . Highest Temperature 320 | 60 180 320 Average Temperature 63 | 31 36 95 Received Heat Transfer 397 | . 117 280 Effects 2 | . . 2 Energy Bleed 1 | . . 1 Short Circuit 1 | . . 1 Siege Activations . | . . . Robots Corrupted . | . . . Combat Hostiles . | . . . Parts Fried . | . . . Impact Corruptions . | . . . Robots Melted . | . . . Combat Hostiles . | . . . Parts Melted 1 | 1 . . Heat Transferred 929 | 87 842 . Parts Sabotaged . | . . . Parts Stolen . | . . . Parts Stripped . | . . . Power Chain Reactions . | . . . Alert | -11 -10 -10 ------- Run | Yrd Mat Min Peak Influence 236 | 10 236 51 Initial 36 | . 6 36 Average 69 | 6 84 17 Maximum Alert Level 1 | . 1 . Low Security (%) 98 | 100 98 100 Level 1 1 | . 1 . Level 2 . | . . . Level 3 . | . . . Level 4 . | . . . Level 5 . | . . . High Security . | . . . Max Security . | . . . Squads Dispatched 3 | . 3 . Investigation 2 | . 2 . Extermination . | . . . Reinforcement 1 | . 1 . Assault . | . . . Garrison . | . . . Intercept . | . . . Searches Triggered . | . . . Construction Impeded . | . . . Haulers Reinforced . | . . . Active Scanning Responses . | . . . Cargo Convoy Interrupts . | . . . Stealth | -11 -10 -10 --------- Run | Yrd Mat Min Distress Signals . | . . . Communications Jammed . | . . . Distress Signals . | . . . Times Spotted 36 | . 17 19 Peak Tracking Total 4 | . 3 4 Tactical Retreats 3 | . 2 1 Traps | -11 -10 -10 ------- Run | Yrd Mat Min Traps Triggered 1 | . 1 . Indirectly . | . . . Trap Hack Attempts . | . . . Triggered . | . . . Disarmed . | . . . Reprogrammed . | . . . Reused . | . . . Traps Extracted . | . . . Installed . | . . . Triggered . | . . . Machines | -11 -10 -10 ---------- Run | Yrd Mat Min Machines Disabled 4 | . 4 . Max in Single Turn 1 | . 1 . Machines Repaired . | . . . Machines Dismantled . | . . . Machines Sabotaged . | . . . Overloaded Fab Kills . | . . . Hacking | -11 -10 -10 --------- Run | Yrd Mat Min Machines Accessed 8 | . 8 . Terminals 7 | . 7 . Fabricators . | . . . Repair Stations 1 | . 1 . Recycling Units . | . . . Scanalyzers . | . . . Garrison Access . | . . . Total Hacks 21 | . 21 . Successful 11 | . 11 . Failed 10 | . 10 . Catastrophic 2 | . 2 . Database Lockouts . | . . . Manual 8 | . 8 . Terminals 15 | . 15 . Fabricators . | . . . Repair Stations 6 | . 6 . Recycling Units . | . . . Scanalyzers . | . . . Garrison Access . | . . . Terminal Hacks 4 | . 4 . Prototype ID Bank 3 | . 3 . Zone Layout 1 | . 1 . Fabricator Hacks . | . . . Repair Station Hacks 6 | . 6 . Scan Component 3 | . 3 . Repair 3 | . 3 . Recycling Unit Hacks . | . . . Scanalyzer . | . . . Garrison Access Hacks . | . . . Unauthorized Hacks 1 | . 1 . Terminals 1 | . 1 . Operators 1 | . 1 . Fabricators . | . . . Repair Stations . | . . . Recycling Units . | . . . Scanalyzers . | . . . Garrison Access . | . . . Data Cores Recovered . | . . . Used . | . . . Hacking Detections 8 | . 8 . Full Trace Events 1 | . 1 . Feedback Events . | . . . Feedback Blocked . | . . . Robot Schematics Acquired . | . . . Robots Built . | . . . Authchips . | . . . Time . | . . . Total Robot Build Rating . | . . . Part Schematics Acquired . | . . . Parts Built . | . . . Authchips . | . . . Time . | . . . Total Part Build Rating . | . . . Parts Repaired 3 | . 3 . Time 90 | . 90 . Parts Recycled . | . . . Recycled Matter . | . . . Retrieved Matter . | . . . Retrieved Components . | . . . Parts Scanalyzed . | . . . Part Schematics Acquired . | . . . Parts Damaged . | . . . Bothacking | -11 -10 -10 ------------ Run | Yrd Mat Min Used RIF Installer . | . . . Robots Hacked . | . . . Non-combat . | . . . Combat . | . . . Robot Hacks Applied . | . . . Relay Couplers Released . | . . . Fabnet Peak Effective % . | . . . Robots Rewired . | . . . Allies Hacked . | . . . Hacks Repelled . | . . . Allies | -11 -10 -10 -------- Run | Yrd Mat Min Total Allies 3 | . . 3 Largest Group 3 | . . 3 Highest-Rated Group 69 | . . 69 Highest-Rated Ally 31 | . . 31 Total Orders . | . . . Ally Attacks 14 | . . 14 Total Damage 104 | . . 104 Kills 2 | . . 2 Allies Corrupted . | . . . Allies Melted . | . . . Intel | -11 -10 -10 ------- Run | Yrd Mat Min Robot Analysis Total . | . . . Derelict Logs Recovered 1 | . . 1 Drone Launches . | . . . Drone Recoveries . | . . . Exploration | -11 -10 -10 ------------- Run | Yrd Mat Min Turns Passed 4134 | 26 3205 903 Spaces Moved 1022 | 13 775 234 Core . | . . . Treads 664 | . 430 234 Legs 358 | 13 345 . Wheels . | . . . Hover . | . . . Flight . | . . . Fastest Speed 120 | 120 120 320 Average Speed 249 | 120 230 320 Slowest Speed 320 | 120 320 320 Overloaded Moves . | . . . Propulsion Burnouts . | . . . Robots Hopped . | . . . Cave-ins Triggered . | . . . Exploration Rate (%) 53 | 2 97 62 Regions Visited 2 Branch Regions 1 Pre-discovered Areas . | . . . Known Exits Taken . | . . . Unknown Exits Taken 2 | 1 1 . Scrap Searched 1 | . . 1 Spaces Dug . | . . . Terrain Destroyed . | . . . Melee . | . . . Projectile . | . . . AOE . | . . . Terrain Rammed . | . . . Walls Destroyed . | . . . Machines Disabled . | . . . Actions | -11 -10 -10 --------- Run | Yrd Mat Min Total 2429 | 19 2104 306 Wait 1256 | . 1252 4 Move 1020 | 12 774 234 Hop . | . . . Pick Up 16 | 1 8 7 Fast Attach 6 | 1 5 . Attach 6 | . . 6 Detach . | . . . Swap 7 | 1 5 1 Drop 11 | 2 7 2 Fire 103 | 2 51 50 Melee 2 | . . 2 Ram . | . . . Kick 2 | . 2 . Crush . | . . . Escape Stasis . | . . . Rewire . | . . . Trap . | . . . Miscellaneous . | . . . Route ------- -11/Scrapyard -10/Materials (discovered 4 exits: [*Mat x3] / [*Min]) -10/Mines (discovered 2 exits: [*Mat x2]) History --------- Turn | Location | Event 1 | -11/Scrapyard | Discovered new exit (range 1) 27 | -11/Scrapyard | Entered Materials 308 | -10/Materials | Build established: Mutant 1390 | -10/Materials | Discovered new exit (range 13) 1590 | -10/Materials | Discovered new exit (range 3) 2465 | -10/Materials | Discovered new exit (range 11) 2702 | -10/Materials | Discovered new exit (range 10) 3035 | -10/Materials | Repaired Lgt. Treads 3068 | -10/Materials | Repaired Autogun 3102 | -10/Materials | Repaired Autogun 3232 | -10/Materials | Entered Mines 3541 | -10/Mines | Discovered new exit (range 7) 3569 | -10/Mines | Learned Materials security intel 3608 | -10/Mines | Joined a pair of Derelicts in attacking an 0b10 outpost 3818 | -10/Mines | Received a Mining Laser from a helpful Derelict 3819 | -10/Mines | Discovered new exit (range 8) 3916 | -10/Mines | Assembled infested the area 3921 | -10/Mines | Assisted by a Guerilla fighting off Assembled 3990 | -10/Mines | Lost 4 allies 4066 | -10/Mines | Destroyed 10 combat bots 4109 | -10/Mines | Core integrity fell below 50% 4133 | -10/Mines | Core integrity fell below 20% 4135 | -10/Mines | Destroyed by as-14185 with Assembled Blade Last Messages --------------- 04081_ as-45823 destroyed. 04084_ Acquired 38 matter. 04092_ as-95787 destroyed. 04095_ Acquired 17 matter. 04103_ Autogun destroyed. 04106_ Lgt. Treads destroyed. 04106_ System corrupted by crushing effect (+3). 04108_ System corrupted: Heat flow error (+168). 04108_ Acquired 14 matter. 04111_ Acquired 11 matter. 04115_ Lgt. Armor Plating destroyed. 04117_ Lgt. Treads destroyed. 04117_ System corrupted by crushing effect (+1). 04122_ Destroyed Asb. Hover Unit. 04122_ Broken Imp. Ion Engine destroyed. 04125_ Autogun destroyed. 04127_ Destroyed Asb. Hover Unit. 04127_ Lgt. Treads destroyed. 04130_ Autogun destroyed. 04130_ as-08114 destroyed. Map ----- +----------------------------------------------------+ | | | | | | | | | | | ????????????????????????????????????????? | | ????????????????????????????????????????? | | ????????????????????????????????????????? | | ????????????????????????????????????????? | | ????????????????????????##??????????????? | | ??????????????????#????? ]#?????????????? | | ?????????????????? ????? ?????????????? | | ?????????????????? ????? ?????????????? | | ?????????????????#%#???? ?????????????? | | ?????????????????# #???? ?????????????? | | ?????????????????# #????# #?????????????? | | ?????????????????# #????# #?????????????? | | ????????????????## #????# #?????????????? | | ????????????????? ##???#%#?????????????? | | ????????????????? ##??# #?????????????? | | ?????????????????# #??#a###???????????? | | ??????????######## #??# ????????????? | | ?????###### ## #???#%#?????????????? | | ?????# % ##### #?????????????? | | ?????#$ % %% % #????###??????? | | ?????????# a % a@#?### ##?????? | | ????????## ########## ##????? | | ????????# #???????# ##???? | | ?????# ##= #???????# #???? | | ?????# ##???????# #???? | | ?????# ### #####????????# #????? | | ?????????### #???????###### #?????? | | ??????????# ??????## ##?????? | | ?????? ???# ####### #??????? | | ????? #? | ##??????? | | ???? ### ##### # ####???????? | | ???? ## ????# ## ##??????????? | | ???? # ###????# ### #???????????? | | ???? #????????# #?# #???????????? | | ???? #????????# #?# < #??????????? | | ???? #?????????# #?## #?????????? | | ????# #??????????# #??## #?????????? | | ???## #???????????# #???## ##?????????? | | ??## #?????????#### #????####??????????? | | ### ##???????## # #??????????????????? | | ##?###### #??????????????????? | | ### ###???????######?????? | | ##????????##"/ "##????? | | # ##?????????#""[!""#????? | | ##### ###??????????# **!! #????? | +----------------------------------------------------+ Best States ------------- Heat Dissipation 25 Energy Generation 12 Energy Capacity 265 Matter Stores 300 Matter Capacity 300 Sight Range 16 Terrain Scan Density 10 Armor Coverage 150 Evasion (%) 55 Recoil Reduction 2 Item Schematics ----------------- None Robot Schematics ------------------ None Fabricated ------------ Nothing Alien Tech Used ----------------- None Achievements -------------- None Challenges ------------ None Game ------ Seed CoolantSchematicBeamcaster Manual? 0 Play Time 00:22:30 Cumulative 55.2 hours Start 2024.04.20 @ 17:54:11 End 2024.04.20 @ 18:59:18 Sessions 1 Manual Loads 0 Difficulty Rogue Special Mode None Game No. 34 Rogue 34 Adventurer 0 Explorer 0 Win Type - Total 0 Types 0/0/0/0/0/0/0/0/0 Lore% 27 Gallery% 36 Achievement% 32 Wizard Run 0 Options --------- Layout 0 ASCII 0 Keyboard 0 Movement Numpad Keybinds 1 Fullscreen 1 Font 18/SmallcapsGlow Map View 76x50 Zoom Use 0% Tactical HUD 1 Map Filters NONE Filters NONE Steam 1 RUN: 1eca0409-fa2c-4ca4-969e-30236d54a2d1